fUST/lending_fUST_20240718
["ID","MTS","AMOUNT","RATE_DAILY","PERIOD"]
[332500322,1721278232035,-151.0,0.00021378,2]
[332500323,1721278232046,-151.0,0.00021513,2]
[332500324,1721278232057,-153.8586341,0.000216,2]
[332500325,1721278232067,-1000.0,0.00021622,2]
[332500326,1721278232076,-1000.0,0.00021636,2]
[332500327,1721278232086,-151.0,0.00021647,2]
[332500328,1721278232096,-1000.0,0.00021648,2]
[332500329,1721278232106,-1000.0,0.00021661,2]
[332500330,1721278232115,-1000.0,0.00021683,2]
[332500331,1721278232127,-232.8315038,0.00021686,2]
[332500332,1721278232137,-1000.0,0.00021691,2]
[332500333,1721278232147,-21.5546741,0.00021703,2]
[332500334,1721278232157,-6994.4971713,0.00021703,2]
[332500335,1721278232168,-1172.52899521,0.00021703,2]
[332500336,1721278232178,-1000.0,0.00021723,2]
[332500337,1721278232188,-1000.0,0.00021726,2]
[332500338,1721278232199,-1000.0,0.0002176,2]
[332500339,1721278232208,-1000.0,0.00021761,2]
[332500340,1721278232218,-1000.0,0.0002177,2]
[332500341,1721278232228,-238.86649568,0.0002177,2]
[332500342,1721278232237,-1000.0,0.00021771,2]
[332500343,1721278232247,-1000.0,0.00021773,2]
[332500344,1721278232257,-1000.0,0.00021782,2]
[332500345,1721278232267,-151.0,0.00021782,2]
[332500346,1721278232277,-1000.0,0.00021783,2]
[332500347,1721278232286,-691.42415333,0.00021784,2]
[332500348,1721278232296,-1000.0,0.00021785,2]
[332500349,1721278232306,-300.0,0.00021788,2]
[332500350,1721278232317,-1000.0,0.00021794,2]
[332500351,1721278232326,-1000.0,0.0002181,2]
[332500352,1721278232336,-632.75745965,0.00021811,2]
[332500353,1721278232348,-871.86217029,0.00021817,2]
[332500354,1721278232358,-402.67453528,0.00021817,2]
[332500355,1721278232367,-1000.0,0.00021818,2]
[332500356,1721278232377,-1000.0,0.00021837,2]
[332500357,1721278232388,-1000.0,0.00021839,2]
[332500358,1721278232398,-1000.0,0.00021855,2]
[332500359,1721278232408,-299.66938998,0.00021855,2]
[332500360,1721278232418,-1000.0,0.00021856,2]
[332500361,1721278232427,-1000.0,0.00021864,2]
[332500362,1721278232438,-286.26345819,0.00021867,2]
[332500363,1721278232447,-1000.0,0.00021868,2]
[332500364,1721278232457,-1000.0,0.00021874,2]
[332500365,1721278232466,-1000.0,0.00021876,2]
[332500366,1721278232476,-1407.0,0.00021881,2]
[332500367,1721278232486,-620.00290813,0.00021885,2]
[332500368,1721278232495,-500.0,0.00021896,2]
[332500369,1721278232505,-500.0,0.00021896,2]
[332500370,1721278232515,-500.0,0.00021896,2]
[332500371,1721278232524,-549.75218444,0.00021896,2]
[332500372,1721278232534,-500.0,0.00021896,2]
[332500373,1721278232543,-463.46882718,0.00021896,2]
[332500426,1721278238575,-397.2127,0.00021874,5]
[332500427,1721278238586,-2003.01915172,0.00021874,5]
[332500455,1721278240204,-1780.71266243,0.00021874,5]
[332500457,1721278240214,-36.53117282,0.00021896,2]
[332500459,1721278240223,-500.0,0.00021896,2]
[332500461,1721278240233,-500.0,0.00021896,2]
[332500462,1721278240242,-500.0,0.00021896,2]
[332500464,1721278240251,-500.0,0.00021896,2]
[332500466,1721278240261,-500.0,0.00021896,2]
[332500468,1721278240270,-500.0,0.00021896,2]
[332500471,1721278240283,-226.445699,0.00021896,2]
[332500473,1721278240294,-151.097536,0.00021896,2]
[332500475,1721278240304,-151.097536,0.00021896,2]
[332500477,1721278240314,-268.264939,0.00021896,2]
[332500479,1721278240324,-151.0,0.00021896,2]
[332500481,1721278240334,-151.0,0.00021896,2]
[332500483,1721278240343,-151.0,0.00021896,2]
[332500485,1721278240354,-151.0,0.00021896,2]
[332500487,1721278240363,-151.0,0.00021896,2]
[332500489,1721278240373,-151.0,0.00021896,2]
[332500491,1721278240383,-188.899087,0.00021896,2]
[332500494,1721278240395,-151.0,0.00021896,2]
[332500496,1721278240404,-269.673754,0.00021896,2]
[332500498,1721278240414,-152.952087,0.00021896,2]
[332500500,1721278240424,-269.673754,0.00021896,2]
[332500502,1721278240434,-151.0,0.00021896,2]
[332500504,1721278240443,-594.170538,0.00021896,2]
[332500506,1721278240454,-594.170538,0.00021896,2]
[332500508,1721278240464,-151.0,0.00021896,2]
[332500510,1721278240474,-151.0,0.00021896,2]
[332500512,1721278240483,-151.0,0.00021896,2]
[332500514,1721278240493,-151.0,0.00021896,2]
[332500516,1721278240503,-154.453907,0.00021896,2]
[332500518,1721278240513,-151.0,0.00021896,2]
[332500520,1721278240523,-151.0,0.00021896,2]
[332500522,1721278240532,-151.0,0.00021896,2]
[332500524,1721278240542,-158.680961,0.00021896,2]
[332500526,1721278240551,-158.680961,0.00021896,2]
[332500528,1721278240561,-263.041652,0.00021896,2]
[332500530,1721278240571,-263.041652,0.00021896,2]
[332500532,1721278240580,-151.0,0.00021896,2]
[332500534,1721278240590,-24154.79376382,0.00021897,3]
[332506777,1721279402847,157.23075393,9.999e-05,2]
[332506799,1721279432166,-150.0,0.00019797,2]
[332506801,1721279432176,-402.67453528,0.00020956,2]
[332506803,1721279432185,-151.0,0.00020957,2]
[332506805,1721279432194,-300.0,0.00020999,2]
[332506807,1721279432204,-6345.81791655,0.00021,2]
[332506810,1721279432216,-250.81599999,0.00021,2]
[332506870,1721279440377,-150.0,0.000189,2]
[332506872,1721279440387,-4225.74838246,0.00021,2]
[332506874,1721279440397,-299.66938998,0.00021,2]
[332506876,1721279440407,-151.0,0.00021094,2]
[332506878,1721279440416,-504.88907208,0.00021095,2]
[332506880,1721279440426,-479.597174,0.00021096,2]
[332506882,1721279440435,-151.0,0.00021231,2]
[332506885,1721279440448,-151.0,0.00021368,2]
[332506887,1721279440460,-357.11741279,0.00021466,2]
[332506889,1721279440470,-151.0,0.00021506,2]
[332506891,1721279440481,-151.0,0.00021643,2]
[332506893,1721279440492,-151.0,0.0002178,2]
[332506895,1721279440502,-151.0,0.0002178,2]
[332506897,1721279440511,-275.58501155,0.00021817,3]
[332506899,1721279440521,-6994.4971713,0.00021897,2]
[332506901,1721279440531,-374.0,0.000219,2]
[332506903,1721279440541,-748.0,0.000219,2]
[332506905,1721279440550,-748.0,0.000219,2]
[332506907,1721279440559,-748.0,0.000219,2]
[332506909,1721279440570,-150.112233,0.000219,2]
[332506911,1721279440579,-150.112233,0.000219,5]
[332506914,1721279440589,-150.112233,0.000219,2]
[332506916,1721279440599,-150.112233,0.000219,2]
[332506918,1721279440611,-150.112233,0.000219,4]
[332506920,1721279440621,-150.112233,0.000219,2]
[332506922,1721279440630,-150.112233,0.000219,2]
[332506924,1721279440640,-150.112233,0.000219,5]
[332506926,1721279440650,-150.112233,0.000219,2]
[332506928,1721279440659,-150.112233,0.000219,2]
[332506930,1721279440669,-150.112233,0.000219,5]
[332506932,1721279440679,-150.112233,0.000219,4]
[332506934,1721279440689,-150.112233,0.000219,2]
[332506936,1721279440698,-150.112233,0.000219,2]
[332506938,1721279440708,-150.112233,0.000219,4]
[332506940,1721279440721,-3000.0,0.000219,2]
[332506942,1721279440731,-314.736918,0.000219,9]
[332506944,1721279440740,-1003.391642,0.000219,2]
[332506946,1721279440749,-507.65,0.000219,2]
[332506948,1721279440760,-500.0,0.00021906,2]
[332506950,1721279440770,-186.65144073,0.00021906,2]
[332506951,1721279440780,-500.0,0.00021906,2]
[332506953,1721279440790,-325.03476334,0.00021906,2]
[332506955,1721279440800,-500.0,0.00021906,2]
[332506957,1721279440810,-500.0,0.00021906,2]
[332506959,1721279440820,-500.0,0.00021906,2]
[332506961,1721279440830,-500.0,0.00021906,2]
[332506963,1721279440839,-500.0,0.00021906,2]
[332506965,1721279440849,-605.52299024,0.00021906,2]
[332506967,1721279440860,-500.0,0.00021906,2]
[332506969,1721279440870,-503.73101566,0.00021906,2]
[332506971,1721279440879,-500.0,0.00021906,2]
[332506973,1721279440890,-500.0,0.00021906,2]
[332506975,1721279440900,-500.0,0.00021906,2]
[332506977,1721279440909,-172.19468716,0.00021906,2]
[332506979,1721279440919,-500.0,0.00021906,2]
[332506981,1721279440928,-500.0,0.00021906,2]
[332506983,1721279440939,-500.0,0.00021906,2]
[332506985,1721279440948,-500.0,0.00021906,2]
[332506987,1721279440959,-500.0,0.00021906,2]
[332506989,1721279440968,-536.53117282,0.00021906,2]
[332506991,1721279440979,-151.0,0.00021906,2]
[332506993,1721279440988,-167.886151,0.00021906,2]
[332506995,1721279440998,-167.886151,0.00021906,2]
[332506997,1721279441008,-151.0,0.00021906,2]
[332506999,1721279441018,-151.0,0.00021906,2]
[332507001,1721279441028,-151.0,0.00021906,2]
[332507003,1721279441038,-94.37815896,0.00021906,2]
[332507006,1721279441050,-94.52092804,0.00021906,2]
[332507008,1721279441060,-151.0,0.00021906,2]
[332507010,1721279441070,-151.0,0.00021906,2]
[332507012,1721279441079,-151.0,0.00021906,2]
[332507014,1721279441089,-151.0,0.00021906,2]
[332507016,1721279441099,-154.453907,0.00021906,2]
[332507018,1721279441110,-151.0,0.00021906,2]
[332507019,1721279441119,-151.0,0.00021906,2]
[332507022,1721279441129,-594.170538,0.00021906,2]
[332507024,1721279441139,-151.0,0.00021906,2]
[332507026,1721279441148,-594.170538,0.00021906,2]
[332507028,1721279441157,-151.0,0.00021906,2]
[332507030,1721279441167,-151.0,0.00021906,2]
[332507031,1721279441177,-151.0,0.00021906,2]
[332507033,1721279441187,-269.673754,0.00021906,2]
[332507035,1721279441198,-158.680961,0.00021906,2]
[332507037,1721279441208,-158.680961,0.00021906,2]
[332507039,1721279441218,-269.673754,0.00021906,2]
[332507041,1721279441227,-151.0,0.00021906,2]
[332507043,1721279441236,-263.041652,0.00021906,2]
[332507045,1721279441245,-151.870964,0.00021906,2]
[332507047,1721279441255,-263.041652,0.00021906,2]
[332507049,1721279441264,-226.445699,0.00021906,2]
[332507051,1721279441274,-2980.82858829,0.00021907,5]
[332507053,1721279441283,-37120.44020959,0.00021907,3]
[332507346,1721279443865,-3244.25799986,0.00021907,3]
[332507588,1721279446309,-5987.9983225,0.00021907,3]
[332509013,1721280633336,-150.0,0.00019807,2]
[332509015,1721280633346,-4151.82811718,0.00020243,2]
[332509105,1721280640664,-3286.6987002,0.00020243,2]
[332509107,1721280640674,-4223.9271398,0.00020365,2]
[332509109,1721280640683,-257.1406777,0.00020377,2]
[332509111,1721280640693,-284.555902,0.00020723,2]
[332509112,1721280640702,-236.894534,0.00020723,2]
[332509114,1721280640711,-284.555902,0.00020982,2]
[332509116,1721280640721,-236.894534,0.00020982,2]
[332509117,1721280640730,-471.439072,0.00021096,2]
[332509118,1721280640739,-159.865726,0.00021096,2]
[332509119,1721280640748,-1609.40940753,0.00021111,3]
[332509120,1721280640759,-151.0,0.00021112,2]
[332509121,1721280640769,-402.67453528,0.00021237,2]
[332509123,1721280640778,-154.92966057,0.00021238,2]
[332509124,1721280640786,-284.555902,0.00021241,2]
[332509126,1721280640796,-236.894534,0.00021241,2]
[332509127,1721280640805,-151.0,0.00021247,2]
[332509128,1721280640814,-151.0,0.00021381,2]
[332509129,1721280640823,-299.66938998,0.00021461,2]
[332509130,1721280640832,-357.11741279,0.00021462,2]
[332509131,1721280640841,-284.555902,0.000215,2]
[332509132,1721280640850,-236.894534,0.000215,2]
[332509133,1721280640859,-151.0,0.00021515,2]
[332509134,1721280640868,-293.79355816,0.00021648,2]
[332509135,1721280640878,-151.0,0.00021649,2]
[332509136,1721280640887,-284.555902,0.00021759,2]
[332509137,1721280640896,-236.894534,0.00021759,2]
[332509138,1721280640904,-153.6478769,0.00021774,2]
[332509139,1721280640913,-153.0,0.00021774,2]
[332509140,1721280640922,-151.0,0.00021783,2]
[332509141,1721280640931,-151.0,0.00021783,2]
[332509142,1721280640940,-275.58501155,0.00021817,3]
[332509143,1721280640950,-504.88907208,0.00021889,2]
[332509144,1721280640959,-2500.0,0.000219,2]
[332509145,1721280640969,-374.0,0.000219,2]
[332509146,1721280640977,-748.0,0.000219,2]
[332509147,1721280640986,-748.0,0.000219,2]
[332509148,1721280640995,-748.0,0.000219,2]
[332509149,1721280641004,-782.78590774,0.000219,15]
[332509150,1721280641014,-300.0,0.000219,9]
[332509151,1721280641023,-3000.0,0.000219,2]
[332509152,1721280641032,-150.112233,0.000219,3]
[332509153,1721280641041,-150.112233,0.000219,2]
[332509154,1721280641050,-150.112233,0.000219,5]
[332509155,1721280641060,-150.112233,0.000219,3]
[332509156,1721280641074,-150.112233,0.000219,3]
[332509157,1721280641084,-150.112233,0.000219,5]
[332509158,1721280641093,-150.112233,0.000219,3]
[332509159,1721280641102,-150.112233,0.000219,5]
[332509160,1721280641113,-150.112233,0.000219,2]
[332509161,1721280641123,-150.112233,0.000219,5]
[332509162,1721280641133,-8283.43454179,0.000219,2]
[332509204,1721280646441,-11825.99973,0.000219,2]
[332509320,1721281843687,-150.0,0.000198,2]
[332509321,1721281843699,-284.555903,0.00020723,2]
[332509322,1721281843711,-236.894535,0.00020723,2]
[332509323,1721281843723,-284.555902,0.00020723,2]
[332509324,1721281843734,-236.894534,0.00020723,2]
[332509325,1721281843743,-299.66938998,0.00021,2]
[332509326,1721281843753,-463.85369,0.00021096,2]
[332509327,1721281843764,-151.0,0.0002128,2]
[332509328,1721281843774,-151.0,0.00021408,2]
[332509329,1721281843783,-357.11741279,0.00021409,2]
[332509330,1721281843794,-153.6478769,0.00021452,2]
[332509331,1721281843803,-153.0,0.000215,2]
[332509332,1721281843813,-293.79355816,0.00021534,2]
[332509333,1721281843822,-151.0,0.00021535,2]
[332509334,1721281843831,-151.0,0.00021662,2]
[332509335,1721281843841,-151.0,0.0002179,2]
[332509336,1721281843850,-151.0,0.0002179,2]
[332509337,1721281843859,-453.5938771,0.00021816,2]
[332509338,1721281843868,-67.39504784,0.00021817,3]
[332509339,1721281843880,-872.39448819,0.00021817,3]
[332509340,1721281843890,-598.24214223,0.00021886,3]
[332509341,1721281843899,-5487.92770842,0.00021887,3]
[332509342,1721281843911,-5833.49533879,0.00021887,3]
[332509392,1721281846795,-504.88907208,0.00020243,2]
[332509393,1721281846806,-9785.79562879,0.00021887,3]
[332509394,1721281846817,-804.92,0.00021887,3]
[332509395,1721281846828,-368.84315584,0.00021888,2]
[332509396,1721281846838,-17400.92794223,0.00021889,3]
[332509481,1721283038104,-300.0,0.00018774,2]
[332509483,1721283038113,-24219.0435757,0.00018775,2]
[332509485,1721283038123,-286.809272,0.00018828,2]
[332509487,1721283038132,-3761.5376035,0.00019298,2]
[332509489,1721283038142,-250.0,0.00019457,2]
[332509491,1721283038151,-6090.4166492,0.00019574,2]
[332509493,1721283038161,-250.0000095,0.0001958,2]
[332509495,1721283038170,-150.0,0.00019789,2]
[332509497,1721283038180,-1000.0,0.0002,20]
[332509499,1721283038189,-420.0,0.00020651,2]
[332509501,1721283038199,-1000.0,0.00021,21]
[332509503,1721283038208,-306.0,0.00021052,2]
[332509505,1721283038217,-306.0,0.00021096,2]
[332509507,1721283038226,-153.0,0.00021096,2]
[332509509,1721283038236,-4686.58193848,0.00021326,2]
[332509511,1721283038245,-345.289672,0.00021349,2]
[332509513,1721283038255,-166.666666,0.0002137,2]
[332509515,1721283038264,-345.289673,0.00021432,2]
[332509517,1721283038273,-1490.41429415,0.00021459,5]
[332509519,1721283038284,-4686.58193849,0.00021459,2]
[332509521,1721283038298,-156.17743256,0.00021529,2]
[332509523,1721283038307,-242.71144366,0.00021537,2]
[332509525,1721283038317,-343.87893099,0.00021556,2]
[332509530,1721283038470,-151.0,0.00021557,2]
[332509531,1721283038483,-153.0,0.000216,2]
[332509532,1721283038492,-150.0,0.00021637,2]
[332509533,1721283038502,-151.0,0.00021677,2]
[332509534,1721283038512,-233.0401877,0.00021686,2]
[332509535,1721283038521,-299.66938998,0.00021702,2]
[332509536,1721283038531,-299.66938998,0.00021733,2]
[332509537,1721283038541,-189.61619971,0.00021733,2]
[332509538,1721283038549,-408.52398367,0.00021733,2]
[332509539,1721283038559,-595.96864363,0.00021734,2]
[332509540,1721283038568,-396.91573263,0.00021796,2]
[332509541,1721283038578,-151.0,0.00021797,2]
[332509542,1721283038587,-3426.14942363,0.00021799,2]
[332509543,1721283038596,-3426.14942359,0.00021804,2]
[332509544,1721283038606,-155.397658,0.00021804,2]
[332509545,1721283038615,-151.0,0.00021804,2]
[332509546,1721283038625,-151.0,0.00021804,2]
[332509547,1721283038634,-151.0,0.00021804,2]
[332509548,1721283038643,-151.0,0.00021804,2]
[332509549,1721283038653,-151.0,0.00021804,2]
[332509550,1721283038662,-152.952087,0.00021804,2]
[332509551,1721283038672,-278.981382,0.00021804,2]
[332509552,1721283038682,-250.49458,0.00021804,2]
[332509553,1721283038691,-278.981382,0.00021804,2]
[332509554,1721283038701,-250.49458,0.00021804,2]
[332509555,1721283038710,-151.0,0.00021804,2]
[332509556,1721283038720,-151.0,0.00021804,2]
[332509557,1721283038729,-554.109537,0.00021804,2]
[332509558,1721283038738,-554.109537,0.00021804,2]
[332509559,1721283038747,-151.0,0.00021804,2]
[332509560,1721283038756,-151.0,0.00021804,2]
[332509561,1721283038765,-253.820391,0.00021804,2]
[332509562,1721283038775,-253.820391,0.00021804,2]
[332509563,1721283038786,-151.0,0.00021804,2]
[332509564,1721283038795,-501.846423,0.00021804,2]
[332509565,1721283038806,-501.846423,0.00021804,2]
[332509566,1721283038818,-151.0,0.00021804,2]
[332509567,1721283038831,-151.0,0.00021804,2]
[332509568,1721283038839,-275.58501155,0.00021807,3]
[332509569,1721283038849,-3426.14942359,0.00021808,2]
[332509570,1721283038859,-534.753484,0.00021808,2]
[332509571,1721283038869,-534.753484,0.00021808,2]
[332509572,1721283038878,-151.0,0.00021808,2]
[332509573,1721283038889,-151.0,0.00021809,2]
[332509574,1721283038899,-151.0,0.00021809,2]
[332509575,1721283038909,-151.0,0.00021809,2]
[332509576,1721283038918,-151.0,0.00021809,2]
[332509577,1721283038927,-465.83954018,0.00021811,2]
[332509578,1721283038937,-607.88964265,0.00021811,2]
[332509579,1721283038946,-500.0,0.00021811,2]
[332509580,1721283038956,-500.0,0.00021811,2]
[332509581,1721283038965,-500.0,0.00021811,2]
[332509582,1721283038975,-500.0,0.00021811,2]
[332509583,1721283038984,-500.0,0.00021811,2]
[332509584,1721283038994,-337.85327398,0.00021811,2]
[332509585,1721283039003,-500.0,0.00021811,2]
[332509586,1721283039013,-151.0,0.00021812,2]
[332509587,1721283039024,-231.63111983,0.00021812,2]
[332509588,1721283039035,-167.886151,0.00021812,2]
[332509589,1721283039056,-167.886151,0.00021812,2]
[332509590,1721283039067,-268.264939,0.00021812,2]
[332509591,1721283039078,-151.0,0.00021812,2]
[332509592,1721283039089,-151.0,0.00021812,2]
[332509593,1721283039098,-151.0,0.00021812,2]
[332509594,1721283039108,-151.0,0.00021812,2]
[332509595,1721283039117,-151.0,0.00021812,2]
[332509596,1721283039127,-278.981382,0.00021812,2]
[332509597,1721283039137,-250.49458,0.00021812,2]
[332509598,1721283039147,-250.49458,0.00021812,2]
[332509599,1721283039156,-278.981382,0.00021812,2]
[332509600,1721283039165,-151.0,0.00021812,2]
[332509601,1721283039176,-151.0,0.00021812,2]
[332509602,1721283039185,-554.109537,0.00021812,2]
[332509603,1721283039195,-554.109537,0.00021812,2]
[332509604,1721283039204,-151.0,0.00021812,2]
[332509605,1721283039214,-151.0,0.00021812,2]
[332509606,1721283039224,-253.820391,0.00021812,2]
[332509607,1721283039234,-253.820391,0.00021812,2]
[332509608,1721283039244,-151.0,0.00021812,2]
[332509609,1721283039254,-501.846423,0.00021812,2]
[332509610,1721283039263,-501.846423,0.00021812,2]
[332509611,1721283039273,-151.0,0.00021812,2]
[332509612,1721283039283,-151.0,0.00021812,2]
[332509613,1721283039292,-3426.14942359,0.00021813,2]
[332509614,1721283039302,-151.0,0.00021813,2]
[332509615,1721283039311,-151.0,0.00021813,2]
[332509616,1721283039320,-151.0,0.00021815,2]
[332509617,1721283039330,-151.0,0.00021815,2]
[332509618,1721283039340,-151.0,0.00021815,2]
[332509619,1721283039349,-151.0,0.00021815,2]
[332509620,1721283039359,-278.981382,0.00021815,2]
[332509621,1721283039369,-250.49458,0.00021815,2]
[332509622,1721283039378,-250.49458,0.00021815,2]
[332509623,1721283039388,-278.981382,0.00021815,2]
[332509624,1721283039398,-151.0,0.00021815,2]
[332509625,1721283039408,-554.109537,0.00021815,2]
[332509626,1721283039418,-554.109537,0.00021815,2]
[332509627,1721283039435,-229.344186,0.00021815,2]
[332509628,1721283039445,-253.820391,0.00021815,2]
[332509629,1721283039455,-253.820391,0.00021815,2]
[332509630,1721283039465,-501.846423,0.00021815,2]
[332509631,1721283039475,-501.846423,0.00021815,2]
[332509632,1721283039484,-151.0,0.00021816,2]
[332509633,1721283039493,-534.753484,0.00021816,2]
[332509634,1721283039503,-534.753484,0.00021816,2]
[332509635,1721283039514,-151.0,0.00021817,2]
[332509636,1721283039523,-167.886151,0.00021817,2]
[332509637,1721283039534,-167.886151,0.00021817,2]
[332509638,1721283039543,-219.431632,0.00021817,2]
[332509639,1721283039553,-151.0,0.00021817,2]
[332509640,1721283039563,-151.0,0.00021817,2]
[332509641,1721283039572,-3426.14942359,0.00021817,2]
[332509642,1721283039582,-534.753484,0.00021817,2]
[332509643,1721283039592,-534.753484,0.00021817,2]
[332509644,1721283039602,-151.0,0.00021817,2]
[332509645,1721283039611,-278.981382,0.00021817,2]
[332509646,1721283039621,-250.49458,0.00021817,2]
[332509647,1721283039631,-250.49458,0.00021817,2]
[332509648,1721283039640,-278.981382,0.00021817,2]
[332509649,1721283039649,-554.109537,0.00021817,2]
[332509650,1721283039659,-554.109537,0.00021817,2]
[332509651,1721283039669,-253.820391,0.00021817,2]
[332509652,1721283039679,-253.820391,0.00021817,2]
[332509653,1721283039689,-501.846423,0.00021817,2]
[332509654,1721283039698,-501.846423,0.00021817,2]
[332509655,1721283039708,-204.649331,0.00021879,2]
[332509656,1721283039718,-151.0,0.00021879,2]
[332509657,1721283039727,-19473.486112,0.00021879,3]
[332509658,1721283039737,-534.753484,0.00021885,2]
[332509659,1721283039747,-534.753484,0.00021885,2]
[332509660,1721283039756,-151.0,0.00021885,2]
[332509661,1721283039765,-151.0,0.00021885,2]
[332509662,1721283039775,-151.0,0.00021885,2]
[332509663,1721283039786,-151.0,0.00021885,2]
[332509664,1721283039797,-158.480976,0.00021885,2]
[332509665,1721283039807,-151.0,0.00021885,2]
[332509667,1721283039818,-278.981382,0.00021885,2]
[332509669,1721283039831,-250.49458,0.00021885,2]
[332509670,1721283039841,-250.49458,0.00021885,2]
[332509671,1721283039851,-278.981382,0.00021885,2]
[332509672,1721283039863,-554.109537,0.00021885,2]
[332509673,1721283039873,-554.109537,0.00021885,2]
[332509674,1721283039886,-253.820391,0.00021885,2]
[332509675,1721283039897,-253.820391,0.00021885,2]
[332509676,1721283039908,-501.846423,0.00021885,2]
[332509677,1721283039919,-501.846423,0.00021885,2]
[332509678,1721283039929,-500.0,0.00021886,2]
[332509679,1721283039939,-664.26689244,0.00021886,2]
[332509680,1721283039951,-167.464416,0.00021887,2]
[332509681,1721283039961,-205.89050794,0.00021888,2]
[332509682,1721283039971,-1508.72196241,0.00021888,2]
[332509683,1721283039981,-19473.486112,0.00021889,3]
[332509684,1721283039992,-1814.00243085,0.00021889,2]
[332509685,1721283040002,-4397.48272131,0.00021889,2]
[332509688,1721283040143,-468.633623,0.00021096,2]
[332509689,1721283040153,-2597.01444999,0.00021889,2]
[332509690,1721283040163,-151.0,0.00021889,2]
[332509691,1721283040173,-151.0,0.00021889,2]
[332509692,1721283040184,-151.0,0.00021889,2]
[332509693,1721283040194,-167.886151,0.00021889,2]
[332509694,1721283040204,-167.886151,0.00021889,2]
[332509695,1721283040214,-167.886151,0.00021889,2]
[332509696,1721283040224,-167.886151,0.00021889,2]
[332509697,1721283040234,-151.0,0.00021889,2]
[332509698,1721283040244,-151.0,0.00021889,2]
[332509699,1721283040253,-151.0,0.00021889,2]
[332509700,1721283040264,-151.0,0.00021889,2]
[332509701,1721283040274,-534.753484,0.00021889,2]
[332509702,1721283040286,-534.753484,0.00021889,2]
[332509703,1721283040296,-534.753484,0.00021889,2]
[332509704,1721283040305,-534.753484,0.00021889,2]
[332509705,1721283040317,-151.0,0.00021889,2]
[332509706,1721283040326,-151.0,0.00021889,2]
[332509707,1721283040338,-151.712978,0.00021889,2]
[332509708,1721283040348,-280.474714,0.00021889,2]
[332509709,1721283040359,-278.981382,0.00021889,2]
[332509710,1721283040370,-278.981382,0.00021889,2]
[332509711,1721283040380,-278.981382,0.00021889,2]
[332509712,1721283040389,-250.49458,0.00021889,2]
[332509713,1721283040399,-250.49458,0.00021889,2]
[332509714,1721283040408,-250.49458,0.00021889,2]
[332509715,1721283040418,-250.49458,0.00021889,2]
[332509716,1721283040429,-250.49458,0.00021889,2]
[332509717,1721283040439,-250.49458,0.00021889,2]
[332509718,1721283040448,-278.981382,0.00021889,2]
[332509719,1721283040458,-278.981382,0.00021889,2]
[332509720,1721283040468,-278.981382,0.00021889,2]
[332509721,1721283040478,-554.109537,0.00021889,2]
[332509722,1721283040489,-554.109537,0.00021889,2]
[332509723,1721283040498,-554.109537,0.00021889,2]
[332509724,1721283040508,-554.109537,0.00021889,2]
[332509725,1721283040518,-554.109537,0.00021889,2]
[332509726,1721283040527,-554.109537,0.00021889,2]
[332509727,1721283040539,-253.820391,0.00021889,2]
[332509728,1721283040691,-253.820391,0.00021889,2]
[332509729,1721283040701,-253.820391,0.00021889,2]
[332509730,1721283040711,-253.820391,0.00021889,2]
[332509731,1721283040721,-253.820391,0.00021889,2]
[332509732,1721283040731,-253.820391,0.00021889,2]
[332509733,1721283040741,-501.846423,0.00021889,2]